bitfinex/quotes_SOLUSD_20260115
["timestamp","ask_amount","ask_price","bid_price","bid_amount"]
[1768507885707,1.83268811,141.57,141.53,4.55473533]
[1768507885905,8.985602,141.59,141.55,4.52403183]
[1768507886329,1.92277602,141.59,141.56,4.52403183]
[1768507887627,7.06236293,141.6,141.56,4.52403183]
[1768507887828,8.98513895,141.6,141.56,4.52403183]
[1768507888342,8.98513895,141.6,141.56,11.58816477]
[1768507889310,1.92277602,141.62,141.58,4.52403183]
[1768507889511,8.98405807,141.62,141.58,4.52403183]
[1768507890337,1.92277602,141.62,141.58,4.52403183]
[1768507891418,1.92277602,141.61,141.58,1.84050644]
[1768507892624,8.98442997,141.61,141.58,1.84050644]
[1768507893025,1.92277602,141.61,141.58,1.84050644]
[1768507894741,1.92277602,141.6,141.56,4.52403183]
[1768507894937,1.92277602,141.6,141.56,1.84050644]
[1768507895118,1.92277602,141.6,141.56,4.52403183]
[1768507895834,8.98492931,141.6,141.57,2.68352539]
[1768507897831,139.29659883,141.66,141.57,2.68352539]
[1768507897832,1.92277602,141.62,141.58,4.52403183]
[1768507898836,8.9842291,141.62,141.58,4.52403183]
[1768507899040,7.06083855,141.63,141.6,1.84050644]
[1768507899233,19.57380661,141.64,141.58,7.06273288]
[1768507899234,1.92277602,141.64,141.61,4.49403184]
[1768507899439,1.92277602,141.64,141.61,5.99633217]
[1768507899821,7.0602719,141.64,141.6,4.18582572]
[1768507900020,1.92277602,141.63,141.57,7.0634519]
[1768507900424,1.92277602,141.63,141.58,4.18582572]
[1768507900861,1.92277602,141.61,141.55,7.06464146]
[1768507901348,1.92277602,141.61,141.57,6.02633216]
[1768507902624,1.92277602,141.6,141.57,6.02633216]
[1768507902824,1.92277602,141.6,141.56,4.18582572]
[1768507904646,1.92277602,141.59,141.56,4.18582572]
[1768507904845,1.86277601,141.59,141.56,4.18582572]
[1768507905524,1.86277601,141.59,141.56,1.84050644]
[1768507905723,1.86277601,141.59,141.56,6.02633216]
[1768507906835,8.9844242,141.61,141.57,1.84050644]
[1768507907035,1.92277602,141.6,141.57,6.02633216]
[1768507907630,8.9844242,141.61,141.57,6.02633216]
[1768507908152,8.9844242,141.61,141.58,4.18582572]
[1768507908325,8.9844242,141.61,141.57,6.02633216]
[1768507909649,1.92277602,141.6,141.56,11.2496304]
[1768507910148,1.92277602,141.59,141.56,13.09013684]
[1768507910363,7.06236708,141.6,141.56,13.09013684]
[1768507910724,7.06236708,141.6,141.57,6.02633216]
[1768507910949,7.06236708,141.6,141.55,8.85031612]
[1768507911253,4.18582572,141.59,141.54,5.97169847]
[1768507912251,1.90158413,141.58,141.54,5.97169847]
[1768507912442,1.84158412,141.58,141.54,5.97169847]
[1768507913548,8.90488283,141.58,141.54,13.03666255]
[1768507915050,8.79487759,141.58,141.54,13.03666255]
[1768507915351,8.79487759,141.58,141.55,5.97169847]
[1768507915555,21.83948767,141.62,141.56,5.97169847]
[1768507915870,4.18582572,141.62,141.56,5.97169847]
[1768507916153,4.18582572,141.61,141.56,5.97169847]
[1768507916852,4.18582572,141.61,141.56,1.78587275]
[1768507917056,7.06214689,141.6,141.56,1.78587275]
[1768507917556,8.96373102,141.6,141.56,1.78587275]
[1768507918853,7.06214689,141.6,141.57,1.78587275]
[1768507919237,8.96373102,141.6,141.57,1.78587275]
[1768507920470,1.90158413,141.59,141.54,8.85078318]
[1768507920638,1.90158413,141.58,141.54,5.97169847]
[1768507920954,1.90158413,141.58,141.54,1.78587275]
[1768507922065,8.90522467,141.58,141.54,1.78587275]
[1768507922735,7.0636406,141.58,141.54,1.78587275]
[1768507924062,8.96532731,141.57,141.54,1.78587275]
[1768507924962,1.90158413,141.56,141.52,1.78587275]
[1768507925168,1.90158413,141.56,141.52,13.03770635]
[1768507925748,1.90158413,141.56,141.52,5.97169847]
[1768507926074,7.06464146,141.55,141.52,1.78587275]
[1768507926255,8.96622559,141.55,141.52,1.78587275]
[1768507927264,8.96622559,141.55,141.5,7.06698134]
[1768507927265,1.90158413,141.53,141.5,1.78587275]
[1768507927467,1.90158413,141.53,141.47,9.0541094]
[1768507927784,1.90158413,141.51,141.47,6.17169847]
[1768507928270,8.96850438,141.51,141.47,6.17169847]
[1768507928447,8.96850438,141.51,141.47,1.98587275]
[1768507928647,8.96850438,141.51,141.47,6.17169847]
[1768507928851,8.90850439,141.51,141.47,6.17169847]
[1768507929044,8.90850439,141.51,141.47,1.98587275]
[1768507930846,8.90850439,141.51,141.48,1.78587275]
[1768507931171,8.90850439,141.51,141.47,1.98587275]
[1768507932448,8.90850439,141.51,141.47,6.17169847]
[1768507932648,8.90850439,141.51,141.48,1.78587275]
[1768507935272,8.8485044,141.51,141.48,1.78587275]
[1768507937860,1.90158413,141.54,141.5,5.97169847]
[1768507938052,8.96672472,141.54,141.5,5.97169847]
[1768507938460,1.90158413,141.55,141.52,1.78587275]
[1768507939565,8.96629265,141.55,141.52,1.78587275]
[1768507941974,8.90629266,141.55,141.52,1.78587275]
[1768507942152,7.06470852,141.55,141.5,13.10285833]
[1768507942481,7.00470853,141.55,141.51,1.85013246]
[1768507943256,11.19053425,141.55,141.51,1.85013246]
[1768507943577,28.85213792,141.55,141.5,1.85013246]
[1768507943982,6.10283885,141.54,141.5,1.85013246]
[1768507944566,8.98265292,141.53,141.5,1.85013246]
[1768507944758,8.92265293,141.53,141.5,1.85013246]
[1768507945581,1.96665106,141.52,141.49,1.80699518]
[1768507946365,7.0056398,141.53,141.5,1.80699518]
[1768507946562,8.97229086,141.53,141.5,1.80699518]
[1768507947990,7.0056398,141.53,141.5,1.80699518]
[1768507949582,8.97229086,141.53,141.5,1.80699518]
[1768507953086,7.0056398,141.53,141.48,7.06789851]
[1768507953282,1.96665106,141.52,141.49,1.80699518]
[1768507953868,1.96665106,141.52,141.48,1.80699518]
[1768507954791,1.96665106,141.52,141.48,5.9928209]
[1768507955089,9.03303702,141.52,141.48,5.9928209]
[1768507955485,9.03303702,141.52,141.48,13.06083551]
[1768507955865,9.0325248,141.53,141.5,1.80699518]
[1768507956888,1.96665106,141.53,141.5,5.9928209]
[1768507957088,9.03199234,141.54,141.5,5.9928209]
[1768507957295,9.03199234,141.54,141.5,13.05986362]
[1768507957670,9.03199234,141.54,141.5,5.9928209]
[1768507958085,9.03199234,141.54,141.5,1.80699518]
[1768507958988,7.06534128,141.54,141.5,1.80699518]
[1768507959296,1.96665106,141.53,141.5,1.80699518]
[1768507959492,9.03199234,141.54,141.5,8.87404917]
[1768507959678,9.03199234,141.54,141.51,1.80699518]
[1768507959886,1.96665106,141.53,141.5,5.9928209]
[1768507960185,1.96665106,141.53,141.5,1.80699518]
[1768507961199,1.96665106,141.53,141.48,13.06084377]
[1768507961397,9.03279012,141.52,141.48,11.55872912]
[1768507961573,9.03279012,141.52,141.49,1.80699518]
[1768507962379,1.96665106,141.51,141.47,9.07552885]
[1768507962578,1.96665106,141.51,141.47,11.75923992]
[1768507963687,1.96665106,141.51,141.48,1.80699518]
[1768507964393,9.03339484,141.51,141.48,1.80699518]
[1768507967007,7.06674378,141.51,141.48,1.80699518]
[1768507967206,9.03296161,141.52,141.49,4.49070625]
[1768507968073,7.0660314,141.53,141.5,4.49070625]
[1768507968293,1.96665106,141.54,141.51,1.80699518]
[1768507969176,9.03197913,141.54,141.51,1.80699518]
[1768507973110,1.88717181,141.52,141.49,1.93283556]
[1768507973282,1.88717181,141.52,141.49,4.61654663]
[1768507973898,1.82717181,141.52,141.49,4.61654663]
[1768507974106,1.82717181,141.52,141.49,11.68413516]
[1768507974684,7.06574277,141.53,141.49,11.68413516]
[1768507975508,24.72275198,141.57,141.52,1.93283556]
[1768507975704,1.88717181,141.56,141.52,1.93283556]
[1768507975892,1.88717181,141.55,141.52,1.93283556]
[1768507976093,1.88717181,141.55,141.51,1.93283556]
[1768507976416,1.88717181,141.54,141.5,4.61654663]
[1768507978297,8.95260141,141.54,141.5,4.61654663]
[1768507979914,1.88717181,141.52,141.49,1.93283556]
[1768507980291,8.95360118,141.52,141.49,1.93283556]
[1768507981207,1.88717181,141.51,141.47,0.2]
[1768507981409,1.88717181,141.51,141.47,2.13283556]
[1768507982807,8.95407464,141.51,141.48,1.93283556]
[1768507985307,1.88717181,141.49,141.47,0.2]
[1768507989218,1.88717181,141.53,141.48,1.93283556]
[1768507989510,1.88717181,141.53,141.5,1.93283556]
[1768507990535,8.95283478,141.53,141.5,1.93283556]
[1768507991216,8.95283478,141.53,141.49,1.93283556]
[1768507991413,1.88717181,141.51,141.47,11.88497091]
[1768507991596,1.88717181,141.51,141.48,1.93283556]
[1768507992416,1.88717181,141.52,141.48,9.00081503]
[1768507992596,1.88717181,141.52,141.49,1.93283556]
[1768507993316,8.95346016,141.52,141.49,1.93283556]
[1768507994825,8.9528116,141.53,141.49,1.93283556]
[1768507995020,8.95250235,141.54,141.5,1.93283556]
[1768507995204,8.95250235,141.54,141.51,1.93283556]
[1768507995404,8.95250235,141.54,141.51,1.90283556]
[1768507995811,7.06533054,141.54,141.51,1.90283556]
[1768507996702,1.88717181,141.54,141.51,1.90283556]
[1768507997028,1.88717181,141.54,141.51,1.87283556]
[1768507998213,1.88717181,141.54,141.51,1.84283556]
[1768507998607,1.88717181,141.54,141.49,2.68371107]
[1768507998608,1.88717181,141.53,141.48,9.7516423]
[1768507999016,1.88717181,141.52,141.48,2.68371107]
[1768507999216,4.57088288,141.52,141.47,7.26839741]
[1768507999424,1.88717181,141.52,141.47,9.95210848]
[1768507999823,7.06611094,141.53,141.48,9.75175423]
[1768508000223,7.06524967,141.54,141.51,1.93283556]
[1768508000424,8.95242148,141.54,141.51,1.93283556]
[1768508006010,2.68371107,141.55,141.51,8.99945732]
[1768508006011,11.73354589,141.55,141.51,8.99945732]
[1768508006231,9.04983482,141.55,141.52,1.84506776]
[1768508006419,104.0,141.57,141.54,1.84506776]
[1768508006623,1.98503509,141.57,141.54,1.84506776]
[1768508007532,9.0487456,141.57,141.54,1.84506776]
[1768508007830,1.98503509,141.58,141.54,4.52877883]
[1768508008631,7.06341621,141.58,141.56,1.84506776]
[1768508009031,7.06341621,141.58,141.56,1.81506776]
[1768508009536,7.06341621,141.58,141.56,1.78506776]
[1768508009711,7.06341621,141.58,141.54,2.68371107]
[1768508010334,1.98503509,141.57,141.53,9.74912763]
[1768508010834,7.06341621,141.58,141.54,9.74870663]
[1768508011134,7.06277334,141.59,141.55,2.68371107]
[1768508011435,7.0623907,141.6,141.57,1.84506776]
[1768508011638,7.0623907,141.6,141.57,1.81506776]
[1768508011937,1.98503509,141.58,141.5,35.33411516]
[1768508012135,1.98503509,141.58,141.53,2.68371107]
[1768508012314,1.98503509,141.58,141.54,2.68371107]
[1768508012515,2.68371107,141.59,141.54,9.74855872]
[1768508012726,4.66874616,141.59,141.54,9.74855872]
[1768508012926,1.98503509,141.59,141.54,9.74855872]
[1768508013436,1.98503509,141.59,141.55,7.06463798]
[1768508013640,24.71775793,141.6,141.56,1.84506776]
[1768508013816,7.0623907,141.6,141.56,4.52877883]
[1768508014016,9.04742579,141.6,141.56,4.52877883]
[1768508014317,7.0623907,141.6,141.57,1.84506776]
[1768508015439,9.04682092,141.61,141.58,1.84506776]
[1768508016012,2.68371107,141.63,141.58,1.84506776]
[1768508016013,9.04606102,141.63,141.58,1.84506776]
[1768508016323,9.04606102,141.63,141.59,1.84506776]
[1768508016625,9.04519852,141.64,141.61,1.84506776]
[1768508016934,9.04476682,141.65,141.61,4.49877883]
[1768508017134,9.04476682,141.65,141.61,1.81506776]
[1768508017833,7.05936437,141.66,141.61,2.68371107]
[1768508018039,7.05936437,141.66,141.62,2.68371107]
[1768508018341,7.05936437,141.66,141.62,7.0610434]
[1768508018342,9.04439946,141.66,141.62,7.0610434]
[1768508018744,9.04439946,141.66,141.62,8.90611116]
[1768508019718,9.04369253,141.67,141.63,1.84506776]
[1768508022644,9.04369253,141.67,141.63,1.81506776]
[1768508023520,1.98503509,141.66,141.63,1.81506776]
[1768508025325,9.04442741,141.66,141.63,1.81506776]
[1768508027130,9.04442741,141.66,141.63,6.0000115]
[1768508027926,9.04442741,141.66,141.63,1.81506776]
[1768508028748,6.16997883,141.65,141.61,1.84506776]
[1768508028928,1.98503509,141.64,141.61,1.84506776]
[1768508030135,11.24523109,141.64,141.6,1.84506776]
[1768508030339,1.98503509,141.63,141.6,1.84506776]
[1768508030538,1.98503509,141.63,141.6,6.0300115]
[1768508030850,1.98503509,141.63,141.6,1.84506776]
[1768508031431,8.98593992,141.64,141.6,1.84506776]
[1768508031848,8.98593992,141.64,141.6,6.0300115]
[1768508033839,1.92565257,141.63,141.6,1.84506776]
[1768508034035,6.11059631,141.62,141.58,1.94051723]
[1768508034244,1.92565257,141.61,141.58,1.94051723]
[1768508036256,8.98745656,141.61,141.57,1.94051723]
[1768508037160,1.92565257,141.6,141.56,1.94051723]
[1768508037454,1.92565257,141.58,141.55,1.94051723]
[1768508037830,6.11059631,141.58,141.55,1.94051723]
[1768508038129,1.92565257,141.58,141.55,1.94051723]
[1768508038347,6.11059631,141.58,141.55,1.94051723]
[1768508041566,8.98893177,141.58,141.55,1.94051723]
[1768508042156,13.17387551,141.58,141.55,1.94051723]
[1768508043356,1.92565257,141.56,141.53,1.94051723]
[1768508043746,1.92565257,141.57,141.53,1.94051723]
[1768508043954,1.92565257,141.57,141.54,1.94051723]
[1768508045069,8.98893177,141.58,141.54,1.94051723]
[1768508045260,13.17387551,141.58,141.54,1.94051723]
[1768508047442,4.18494374,141.55,141.51,1.94051723]
[1768508047647,24.72114047,141.58,141.48,19.0]
[1768508047648,6.11059631,141.54,141.5,1.94051723]
[1768508047872,1.92565257,141.54,141.51,1.94051723]
[1768508048966,8.99086503,141.54,141.51,1.94051723]
[1768508049275,8.93086504,141.54,141.51,1.94051723]
[1768508050356,7.06521246,141.54,141.51,1.94051723]
[1768508051371,8.99029403,141.55,141.51,1.94051723]
[1768508054662,8.99097903,141.54,141.51,1.94051723]
[1768508056084,8.98929599,141.57,141.53,1.94051723]
[1768508059071,7.06364342,141.57,141.54,1.94051723]
[1768508059460,7.06328093,141.58,141.55,1.94051723]
[1768508060059,8.9889335,141.58,141.55,1.94051723]
[1768508063378,7.06328093,141.58,141.55,1.94051723]
[1768508070685,6.17442641,141.6,141.56,1.80418069]
[1768508070891,1.98948267,141.61,141.57,1.80418069]
[1768508071764,7.06231337,141.6,141.57,1.80418069]
[1768508076768,9.05179604,141.6,141.57,1.80418069]
[1768508081191,1.98948267,141.59,141.56,1.80418069]
[1768508083279,9.05235686,141.59,141.56,1.80418069]
[1768508089196,8.36685686,141.59,141.56,1.80418069]
[1768508099109,7.06287419,141.59,141.56,1.80418069]
[1768508099610,8.92431309,141.59,141.56,1.80418069]
[1768508102907,1.8614389,141.61,141.57,1.85944012]
[1768508103529,8.92327897,141.61,141.57,8.92299122]
[1768508105006,8.92327897,141.61,141.57,11.60413666]
[1768508105207,1.8614389,141.63,141.59,1.88944012]
[1768508105391,8.9222566,141.63,141.6,1.85944012]
[1768508105708,8.9222566,141.63,141.6,1.82944012]
[1768508106305,8.92265747,141.62,141.55,24.72624513]
[1768508106511,8.92265747,141.62,141.59,2.68114544]
[1768508106811,8.92265747,141.62,141.55,24.72624513]
[1768508106812,1.8614389,141.61,141.55,24.72624513]
[1768508106982,1.8614389,141.61,141.56,2.68114544]
[1768508107490,1.8614389,141.59,141.56,1.88944012]
[1768508107894,1.8614389,141.6,141.57,1.88944012]
[1768508108502,8.92362958,141.6,141.57,1.88944012]
[1768508109809,1.8614389,141.61,141.58,1.88944012]
[1768508111989,1.8614389,141.62,141.59,1.88944012]
[1768508112206,1.8614389,141.65,141.59,1.85944012]
[1768508112404,1.8614389,141.65,141.6,2.68114544]
[1768508112916,8.92130494,141.65,141.6,9.74320962]
[1768508113291,1.8614389,141.64,141.6,7.06206418]
[1768508114104,1.8614389,141.64,141.61,1.88944012]
[1768508114615,1.8614389,141.64,141.61,1.85944012]
[1768508116790,1.8614389,141.65,141.62,4.57058556]
[1768508116991,1.8614389,141.65,141.62,4.54058556]
[1768508117210,1.8614389,141.65,141.62,1.85944012]
[1768508117996,8.92110909,141.65,141.62,1.85944012]
[1768508118539,8.92087398,141.66,141.62,1.85944012]
[1768508118811,8.92087398,141.66,141.62,4.54058556]
[1768508119016,2.68114544,141.68,141.63,1.88944012]
[1768508119320,5.34408856,141.72,141.63,1.88944012]
[1768508119321,2.78114544,141.69,141.64,1.88944012]
[1768508119524,2.68114544,141.68,141.64,1.88944012]
[1768508120108,7.05815923,141.68,141.64,1.88944012]
[1768508120925,1.20608726,141.67,141.64,1.88944012]
[1768508121123,1.20608726,141.66,141.61,1.88537419]
[1768508121299,1.20608726,141.64,141.59,1.88537419]
[1768508121616,1.20608726,141.63,141.6,1.88537419]
[1768508122031,1.20647621,141.64,141.6,1.88537419]
[1768508122398,1.20647621,141.64,141.6,8.94734853]
[1768508122713,1.20684765,141.63,141.6,8.94734853]
[1768508122909,1.20684765,141.63,141.59,8.94794425]
[1768508123114,1.20684765,141.62,141.58,8.94830079]
[1768508123312,3.88799309,141.63,141.59,1.88537419]
[1768508123502,1.20684765,141.63,141.59,1.88537419]
[1768508124033,1.20684765,141.63,141.6,1.88537419]
[1768508124394,8.2674505,141.64,141.6,7.06192696]
[1768508124595,8.2674505,141.64,141.6,1.88537419]
[1768508125813,8.2674505,141.64,141.6,7.06207056]
[1768508126040,8.2674505,141.64,141.61,1.86406407]
[1768508126422,1.21747987,141.63,141.6,1.86406407]
[1768508126830,10.96220438,141.64,141.6,1.86406407]
[1768508128711,1.22739526,141.63,141.59,1.86406407]
[1768508129025,27.39176236,141.64,141.57,1.86406407]
[1768508129026,1.22739526,141.61,141.57,1.86406407]
[1768508129805,3.9085407,141.61,141.57,1.86406407]
[1768508130218,1.23062475,141.6,141.57,1.86406407]
[1768508131041,8.2930643,141.6,141.57,1.86406407]
[1768508132837,1.24009237,141.57,141.52,1.86406407]
[1768508133030,10.98482835,141.58,141.54,1.86406407]
[1768508133252,3.92123781,141.57,141.52,8.93001807]
[1768508133754,3.92123781,141.57,141.53,1.86406407]
[1768508133937,1.24009237,141.57,141.53,8.92968525]
[1768508134409,1.24009237,141.57,141.53,1.86406407]
[1768508135132,8.30398808,141.57,141.53,1.86406407]
[1768508135831,8.30398808,141.57,141.53,8.92949672]
[1768508136136,7.06389571,141.57,141.54,1.86406407]
[1768508137534,1.25221611,141.57,141.54,1.86406407]
[1768508139423,8.3159821,141.57,141.54,1.86406407]
[1768508140516,10.99712754,141.57,141.52,8.9299831]
[1768508140832,10.99712754,141.57,141.53,1.86406407]
[1768508141223,9.74429167,141.58,141.54,1.86406407]
[1768508141416,11.00808402,141.58,141.54,1.86406407]
[1768508141738,1.26379235,141.57,141.54,1.86406407]
[1768508141944,9.74429167,141.58,141.54,8.92918501]
[1768508141945,7.06314623,141.58,141.54,8.92918501]
[1768508142142,1.26660379,141.59,141.54,8.92918501]
[1768508142143,11.01060349,141.59,141.55,1.86406407]
[1768508142624,3.94774923,141.58,141.55,1.86406407]
[1768508143027,3.95052838,141.57,141.53,1.86406407]
[1768508143637,11.01410342,141.58,141.54,1.86406407]
[1768508145329,12.52370311,141.58,141.54,1.86406407]
[1768508146150,4.19074513,141.57,141.54,1.86406407]
[1768508146961,12.52370311,141.58,141.54,1.86406407]
[1768508149232,12.52370311,141.58,141.52,4.19074513]
[1768508149233,1.28540016,141.55,141.52,1.86406407]
[1768508149434,5.47614529,141.55,141.52,1.86406407]
[1768508151350,21.8486064,141.58,141.53,1.88572653]
[1768508152559,7.06375125,141.57,141.54,1.88572653]
[1768508153255,15.0,141.64,141.55,1.88572653]
[1768508153256,119.0,141.64,141.55,1.88572653]
[1768508153466,5.42867049,141.62,141.57,1.88572653]
[1768508154133,1.23792536,141.62,141.58,1.88572653]
[1768508154471,8.30099574,141.63,141.58,4.19074513]
[1768508154643,8.30099574,141.63,141.59,1.88572653]
[1768508155334,35.29682101,141.66,141.61,1.88572653]
[1768508155335,1.24273635,141.66,141.61,1.88572653]
[1768508155528,119.0,141.72,141.61,1.88572653]
[1768508155529,5.43348148,141.67,141.62,1.88572653]
[1768508155966,5.43348148,141.67,141.63,1.88572653]
[1768508156261,5.43584561,141.66,141.61,1.88572653]
[1768508157066,7.05965407,141.65,141.61,1.88572653]
[1768508157268,12.49762697,141.65,141.61,1.88572653]
[1768508159157,8.30688184,141.65,141.62,1.88572653]
[1768508159842,12.49762697,141.65,141.61,1.88572653]
[1768508160242,12.49762697,141.65,141.59,1.88572653]
[1768508160243,1.25346417,141.63,141.59,1.88572653]
[1768508160644,8.31445329,141.63,141.59,1.88572653]
[1768508161363,1.2554954,141.62,141.56,7.06385664]
[1768508161547,1.2554954,141.62,141.58,1.88572653]
[1768508162056,30.16086503,141.63,141.58,1.88572653]
[1768508162266,1.2575033,141.61,141.57,1.88572653]
[1768508162637,7.06214689,141.6,141.57,1.88572653]
[1768508162838,8.3193538,141.61,141.57,1.88572653]
[1768508164955,12.51009893,141.61,141.57,1.88572653]
[1768508166968,8.3193538,141.61,141.57,1.88572653]
[1768508169658,8.3193538,141.61,141.54,17.66230235]
[1768508169659,5.46167259,141.58,141.54,1.88572653]
[1768508170976,4.19074513,141.58,141.54,1.88572653]
[1768508171564,12.52895627,141.57,141.53,1.88572653]
[1768508172062,1.27635656,141.55,141.5,20.88572653]
[1768508172268,1.27635656,141.54,141.5,1.88572653]
[1768508172458,5.46710169,141.55,141.5,1.88572653]
[1768508172846,1.27635656,141.55,141.51,1.88572653]
[1768508173049,1.27635656,141.55,141.52,1.88572653]
[1768508173667,8.28128336,141.55,141.52,1.88572653]
[1768508174249,7.06492685,141.55,141.52,1.88572653]
[1768508175279,24.71751412,141.6,141.54,1.88572653]
[1768508175450,28.90825925,141.6,141.55,1.88572653]
[1768508175656,35.29997332,141.65,141.58,1.88572653]
[1768508175657,7.06169258,141.61,141.58,1.88572653]
[1768508175954,4.19074513,141.63,141.58,1.88572653]
[1768508175955,7.06130468,141.62,141.58,1.88572653]
[1768508177055,8.2263018,141.62,141.58,1.88572653]
[1768508177274,30.06992081,141.62,141.58,1.88572653]
[1768508178179,1.16666616,141.61,141.57,1.88572653]
[1768508178759,5.35741129,141.61,141.57,1.88572653]
[1768508179250,1.16666616,141.61,141.57,1.88572653]
[1768508179481,7.06214689,141.6,141.57,1.88572653]
[1768508180673,8.23177489,141.6,141.55,6.07647166]
[1768508180975,5.36316188,141.59,141.55,1.88572653]
[1768508181581,7.06314451,141.58,141.55,1.88572653]
[1768508181973,7.06263629,141.6,141.56,2.05938324]
[1768508182667,7.06263629,141.6,141.57,2.05938324]
[1768508183188,7.06164818,141.61,141.57,2.05938324]
[1768508183383,12.4275351,141.61,141.57,2.05938324]
[1768508188684,5.3749437,141.6,141.56,1.95425961]
[1768508189681,7.06264566,141.59,141.56,1.95425961]
[1768508190361,7.06238363,141.6,141.57,1.95425961]
[1768508190560,11.25312876,141.6,141.57,1.95425961]
[1768508192171,11.25312876,141.6,141.54,1.95425961]
[1768508192172,1.18786138,141.58,141.54,1.95425961]
[1768508192480,24.71775086,141.6,141.54,1.95425961]
[1768508192481,4.19074513,141.57,141.54,1.95425961]
[1768508192687,4.19074513,141.56,141.5,1.95425961]
[1768508192862,4.19074513,141.55,141.51,1.95425961]
[1768508193184,4.13074513,141.55,141.51,9.02078685]
[1768508193974,7.06514059,141.54,141.51,1.95425961]
[1768508195791,11.19562052,141.55,141.52,1.95425961]
[1768508196164,7.06487539,141.55,141.52,1.95425961]
[1768508196676,11.25562052,141.55,141.52,1.95425961]
[1768508196986,30.84760057,141.55,141.49,4.19074513]
[1768508197283,1.93037638,141.54,141.49,11.25834158]
[1768508197487,30.84760057,141.55,141.49,11.25834158]
[1768508197665,30.84760057,141.55,141.49,4.19074513]
[1768508198478,30.84760057,141.55,141.49,11.25816094]
[1768508199002,30.84760057,141.55,141.5,1.95425961]
[1768508201301,13.1859969,141.55,141.51,1.95425961]
[1768508204184,11.25562052,141.55,141.51,1.95425961]
[1768508204394,7.06487539,141.55,141.51,1.95425961]
[1768508204697,8.99525177,141.55,141.51,1.95425961]
[1768508204993,13.1859969,141.55,141.51,1.95425961]
[1768508205292,1.93037638,141.54,141.51,1.95425961]
[1768508205478,1.93037638,141.54,141.5,1.95425961]
[1768508205790,1.93037638,141.54,141.49,9.02176288]
[1768508205791,1.93037638,141.53,141.49,9.02176288]
[1768508205994,1.93037638,141.53,141.49,1.95425961]
[1768508205995,6.12112151,141.53,141.49,1.95425961]
[1768508206297,6.12112151,141.54,141.5,1.95425961]
[1768508206882,13.18652608,141.54,141.5,1.95425961]
[1768508207292,11.67922058,141.54,141.5,1.95425961]
[1768508207613,17.66160367,141.55,141.5,1.95425961]
[1768508207614,7.06477094,141.55,141.51,1.95425961]
[1768508207775,11.67858695,141.55,141.51,1.95425961]
[1768508211000,4.5961695,141.54,141.51,1.95425961]
[1768508211798,4.5961695,141.53,141.48,26.06794681]
[1768508211998,4.5961695,141.52,141.48,28.13226024]
[1768508212297,4.5961695,141.52,141.49,2.06431343]
[1768508213204,11.66250849,141.52,141.49,2.06431343]
[1768508213895,4.5961695,141.51,141.48,2.06431343]
[1768508214277,4.5961695,141.51,141.47,2.26431343]
[1768508214480,4.5961695,141.5,141.47,0.2]
[1768508214801,2.68343963,141.5,141.47,2.26431343]
[1768508215173,7.06726504,141.5,141.47,2.26431343]
[1768508215699,11.66298974,141.51,141.47,2.26431343]
[1768508218611,9.75093046,141.5,141.47,2.26431343]
[1768508219285,7.06749083,141.5,141.47,2.26431343]
[1768508219489,11.66314743,141.51,141.47,2.26431343]
[1768508220516,4.5961695,141.5,141.47,0.2]
[1768508221010,11.66370303,141.5,141.47,2.26431343]
[1768508221511,4.5961695,141.49,141.47,0.2]
[1768508222291,7.06772556,141.49,141.47,0.2]
[1768508225516,7.06772556,141.49,141.47,2.26431343]
[1768508226012,8.97993402,141.5,141.47,2.26431343]
[1768508227116,7.06720415,141.5,141.47,2.26431343]
[1768508227302,38.0108743,141.54,141.5,2.06431343]
[1768508227303,8.97787046,141.54,141.5,2.06431343]
[1768508227520,8.97787046,141.54,141.5,4.71775307]
[1768508227521,1.91272987,141.53,141.5,4.71775307]
[1768508227903,1.91272987,141.53,141.5,2.03431344]
[1768508228293,1.91272987,141.52,141.47,7.26843982]
[1768508228508,4.5961695,141.5,141.47,0.2]
[1768508228697,1.91272987,141.49,141.47,0.2]
[1768508228891,1.91272987,141.48,141.47,0.2]
[1768508229212,1.91272987,141.47,141.46,0.2]
[1768508229388,2.68343963,141.45,141.41,2.71177783]
[1768508229594,2.68343963,141.44,141.41,2.71177783]
[1768508229919,9.75257578,141.46,141.42,2.06431343]
[1768508230117,2.68343963,141.45,141.42,2.06431343]
[1768508230296,2.68343963,141.45,141.41,2.71177783]
[1768508230619,2.68343963,141.44,141.41,2.71177783]
[1768508230817,2.68343963,141.45,141.41,2.71177783]
[1768508230996,7.06913615,141.46,141.41,2.71177783]
[1768508231197,30.0,141.55,141.43,2.06431343]
[1768508231397,2.68343963,141.48,141.44,2.06431343]
[1768508231590,4.5961695,141.48,141.44,2.06431343]
[1768508232314,4.5961695,141.47,141.42,2.06431343]
[1768508232498,4.5961695,141.46,141.42,2.06431343]
[1768508232707,1.91272987,141.46,141.42,9.13514826]
[1768508233524,1.91272987,141.46,141.43,2.06431343]
[1768508234890,2.68343963,141.47,141.43,2.06431343]
[1768508235493,4.5961695,141.47,141.43,9.13491043]
[1768508235709,4.5961695,141.47,141.44,2.06431343]
[1768508235921,1.91272987,141.47,141.44,2.06431343]
[1768508236388,11.66484364,141.47,141.44,2.06431343]
[1768508239027,11.66484364,141.47,141.43,9.13485462]
[1768508239203,1.91272987,141.46,141.43,2.06431343]